Cogmind - Beta 15 @@@ ROGUE MODE // 2025.06.28 @ 18:58:19 Player: pyroperro Result: Destroyed by G-50 Soldier with Heavy Laser Performance ------------- Evolutions (4) 2000 Regions Visited (4) 800 Robots Destroyed (12) 60 Value Destroyed (477) 477 Prototype IDs (1) 20 Alien Tech Used (0) 0 Bonus (355) 355 TOTAL SCORE: 3712 Bonus ------- Pacifist 364 Friendly Fire -9 Cogmind --------- Core Integrity 0/850 Matter 128/300 Energy 100/100 System Corruption 15% Temperature Cool (9) Movement Core (400) Ox7 Location -6/Factory Parts ------- > --- POWER (1) -------- (None) > --- PROPULSION (6) --- (None) > --- UTILITY (6) ------ Large Storage Unit Advanced ECM Suite > --- WEAPON (2) ------- (None) > --- INVENTORY (15) --- Light Ion Engine Fusion Compressor Fusion Compressor Xenon Bombardment Thruster Hacking Suite Hacking Suite Thermic Laser Coil Gun CPS Tube (2) Peak State ------------ > --- POWER ------------ Heavy Deuterium Engine > --- PROPULSION ------- Light Treads Armored Treads Improved Medium Treads > --- UTILITY ---------- Large Storage Unit IFF Parser Improved Terrain Scanner Advanced ECM Suite > --- WEAPON ----------- High-powered Shock Rifle High-powered Shock Rifle > --- INVENTORY -------- Light Ion Engine Fusion Compressor Fusion Compressor Wheel Xenon Bombardment Thruster Hacking Suite Hacking Suite High-powered Shock Rifle Mini Grenade Launcher CPS Tube [Rating: 40] Favorites ----------- Power Light Ion Engine Engine Light Ion Engine Propulsion Light Treads Treads Light Treads Wheel Compact Wheel Utility Large Storage Unit Device Advanced ECM Suite Storage Large Storage Unit Processor Improved Terrain Scan Processor Protection Hardened Light Armor Plating Weapon High-powered Shock Rifle Energy Gun High-powered Shock Rifle Ballistic Gun Light Assault Rifle Ballistic Cannon Assault Cannon Launcher Mini Grenade Launcher Build | -11 -10 -10 -8 -6 ------- Run | Yrd Mat Sub Scr Fac Slots Evolved 8 | . . . . 8 Power . | . . . . . Propulsion 4 | . . . . 4 Utility 4 | . . . . 4 Weapon . | . . . . . Parts Attached 30 | 6 . . 4 20 Power 2 | 1 . . . 1 Engine 2 | 1 . . . 1 Core . | . . . . . Reactor . | . . . . . Propulsion 7 | 2 . . 1 4 Treads 4 | 2 . . 1 1 Leg . | . . . . . Wheel 3 | . . . . 3 Hover . | . . . . . Flight . | . . . . . Utility 7 | 1 . . 3 3 Device 3 | . . . . 3 Storage 2 | 1 . . 1 . Processor 1 | . . . 1 . Hackware . | . . . . . Protection 1 | . . . 1 . Artifact . | . . . . . Weapon 14 | 2 . . . 12 Energy Gun 7 | 1 . . . 6 Energy Cannon . | . . . . . Ballistic Gun 4 | 1 . . . 3 Ballistic Cannon 2 | . . . . 2 Launcher 1 | . . . . 1 Special Weapon . | . . . . . Impact Weapon . | . . . . . Slashing Weapon . | . . . . . Piercing Weapon . | . . . . . Special Melee Weapon . | . . . . . Unidentified Prototypes 1 | . . . . 1 Parts Lost 11 | . . . . 11 Power 1 | . . . . 1 Propulsion 6 | . . . . 6 Utility 3 | . . . . 3 Weapon 1 | . . . . 1 Highest Loss Streak 7 | . . . . 7 To Critical Strikes . | . . . . . Average Backups 9 | 1 2 2 9 11 Power 1 | . 1 1 1 2 Propulsion 1 | . 1 1 1 2 Utility 2 | . . . 1 3 Weapon 3 | . . . 4 2 Tool/Special . | . . . . . Unused Backups 10 | . . . 2 8 Power 3 | . . . . 3 Propulsion 1 | . . . . 1 Utility 3 | . . . 1 2 Weapon 2 | . . . 1 1 Tool/Special 1 | . . . . 1 Average Slot Usage (%) 66 | . 85 85 70 50 Engine 11 | . 14 14 14 5 Treads 24 | . 28 28 28 14 Device 2 | . . . . 10 Storage 11 | . 14 14 14 6 Processor 1 | . . . 3 . Protection 6 | . . . 10 . Energy Gun 2 | . 14 14 . 4 Ballistic Gun 2 | . 14 14 . 2 Peak Build Rating 40 | 6 6 6 12 40 Average Rating 14 | 4 6 6 9 27 On Entrance 6 | . 6 6 6 12 Naked Turns . | . . . . . Heaviest Build 46 | 11 11 11 28 46 Greatest Support 70 | 40 40 40 40 70 Greatest Overweight (x) 7 | . . . . 7 Average Overweight (x) . | . . . . . Largest Inventory Capacity 15 | 8 8 8 15 15 Average Capacity 12 | 6 8 8 13 15 Most Carried 15 | 2 2 2 14 15 Average Carried 9 | 1 2 2 9 11 Final Capacity 15 | 8 8 8 15 15 Final Carried 14 | 2 2 2 14 9 Class Distribution -------------------- 100% | Mutant Dominant Class ---------------- Mutant | -10/Materials Mutant | -10/Subcaves Mutant | -8/Scraptown Mutant | -6/Factory Resources | -11 -10 -10 -8 -6 ----------- Run | Yrd Mat Sub Scr Fac Matter Collected 740 | 195 . 70 40 435 Remotely . | . . . . . Salvage Created 438 | . . . . 438 Parts 26 | . . . . 26 Haulers Intercepted . | . . . . . Recyclers Shooed 1 | . . . . 1 Parts Field Recycled . | . . . . . Retrieved Matter . | . . . . . Parts Self-Destructed 4 | . . 4 . . Prevented . | . . . . . Kills | -11 -10 -10 -8 -6 ------- Run | Yrd Mat Sub Scr Fac Combat Hostiles Destroyed 7 | . . . . 7 Guns 3 | . . . . 3 Cannons 2 | . . . . 2 AOE 2 | . . . . 2 Classes Destroyed 6 | . . . . 6 Worker 1 | . . . . 1 Builder 2 | . . . . 2 Recycler 1 | . . . . 1 Operator 1 | . . . . 1 Grunt 6 | . . . . 6 Programmer 1 | . . . . 1 Best Kill Streak 5 | . . . . 5 Combat Bots Only 2 | . . . . 2 Max Kills in Single Turn 1 | . . . . 1 Gunslinging . | . . . . . Exploded 1 | . . . . 1 Melee . | . . . . . Uniques/NPCs Destroyed . | . . . . . Combat | -11 -10 -10 -8 -6 -------- Run | Yrd Mat Sub Scr Fac Hostile Shots Fired 176 | . . 5 . 171 Missed 67 | . . 2 . 65 Hits 109 | . . 3 . 106 Melee 10 | . . . . 10 Projectile 99 | . . 3 . 96 Critical Strikes 5 | . . . . 5 Damage Taken 2553 | . . 40 . 2513 Core 867 | . . . . 867 Absorbed by Shields . | . . . . . Core Remaining (%) 100 | 100 . . 100 . Volleys Fired 61 | . . 5 . 56 Largest 2 | . . 2 . 2 Hottest 120 | . . 60 . 120 Shots Fired 110 | . . 10 . 100 Gun 70 | . . 10 . 60 Cannon 24 | . . . . 24 Launcher 16 | . . . . 16 Special . | . . . . . Kinetic 54 | . . 5 . 49 Thermal 13 | . . . . 13 Explosive 16 | . . . . 16 Electromagnetic 27 | . . 5 . 22 Robot Hit Streak 8 | . . 2 . 8 Robot Miss Streak 2 | . . 1 . 2 Penetration Max . | . . . . . Secondary Targets . | . . . . . Shots Hit Robots 69 | . . 5 . 64 Core Hits 36 | . . 2 . 34 Critical Kills . | . . . . . Critical Parts Destroyed . | . . . . . Critical Strikes 2 | . . . . 2 Burn 2 | . . . . 2 Melee Attacks . | . . . . . Impact . | . . . . . Slashing . | . . . . . Piercing . | . . . . . Sneak Attacks . | . . . . . Combat Hostiles . | . . . . . Follow-up Attacks . | . . . . . Damage Inflicted 1820 | . . 55 . 1765 Guns 644 | . . 55 . 589 Cannons 371 | . . . . 371 Explosions 805 | . . . . 805 Melee . | . . . . . Ramming . | . . . . . Kinetic 658 | . . 23 . 635 Thermal 126 | . . . . 126 Explosive 805 | . . . . 805 Electromagnetic 231 | . . 32 . 199 Impact . | . . . . . Slashing . | . . . . . Piercing . | . . . . . Highest Corruption 15 | . . . . 15 Average Corruption 12 | . . . . 12 Corruption Purged . | . . . . . Corruption Blocked . | . . . . . Effects 47 | . . . . 47 Message Errors 19 | . . . . 19 Matter Fused 5 | . . . . 5 Heat Flow Errors 5 | . . . . 5 Energy Discharges 7 | . . . . 7 Parts Fused 1 | . . . . 1 Data Loss (minor) 3 | . . . . 3 Data Loss (major) 1 | . . . . 1 Misfires 2 | . . . . 2 Weapon Failures 4 | . . . . 4 Overload Shots . | . . . . . Overflow Damage 58 | . . . . 58 Projectiles . | . . . . . Explosions 58 | . . . . 58 Melee . | . . . . . Knockbacks 8 | . . . . 8 Impact . | . . . . . Kinetic 8 | . . . . 8 Secondary . | . . . . . Self-Inflicted Damage 120 | . . . . 120 Shots 3 | . . . . 3 Rammed . | . . . . . Targets Rammed . | . . . . . Kicked . | . . . . . Crushed . | . . . . . Highest Temperature 303 | . . . . 303 Average Temperature 84 | . . . . 84 Received Heat Transfer 717 | . . 24 . 693 Effects 1 | . . . . 1 Interference 1 | . . . . 1 Siege Activations . | . . . . . Martial Activations . | . . . . . Shielding Activations . | . . . . . Robots Disrupted . | . . . . . Combat Hostiles . | . . . . . Robots Corrupted . | . . . . . Combat Hostiles . | . . . . . Parts Fried . | . . . . . Impact Corruptions . | . . . . . Robots Melted . | . . . . . Combat Hostiles . | . . . . . Parts Melted 2 | . . . . 2 Heat Transferred 550 | . . . . 550 Parts Sabotaged . | . . . . . Parts Stolen . | . . . . . Parts Stripped . | . . . . . Power Chain Reactions . | . . . . . Alert | -11 -10 -10 -8 -6 ------- Run | Yrd Mat Sub Scr Fac Maximum Alert Level . | . . . . . Low Security (%) 100 | 100 100 . . 100 Level 1 . | . . . . . Level 2 . | . . . . . Level 3 . | . . . . . Level 4 . | . . . . . Level 5 . | . . . . . High Security . | . . . . . Max Security . | . . . . . Peak Influence 154 | . . . . 154 Initial . | . . . . . Average 14 | . . . . 16 Influence Increases 354 | . . . . 354 Destroy 0b10 Robot/C 140 | . . . . 140 Destroy 0b10 Robot/NC 25 | . . . . 25 Destroy Leader 30 | . . . . 30 Disable Machine 120 | . . . . 120 Destroy Structure 39 | . . . . 39 Influence Decreases 280 | . . . . 280 Time Decay 181 | . . . . 181 Lost Part 99 | . . . . 99 Squads Dispatched 4 | . . . . 4 Investigation . | . . . . . Extermination 1 | . . . . 1 Reinforcement 3 | . . . . 3 Assault . | . . . . . Garrison . | . . . . . Intercept . | . . . . . Searches Triggered . | . . . . . Construction Impeded 1 | . . . . 1 Haulers Reinforced 1 | . . . . 1 Active Scanning Responses . | . . . . . Cargo Convoy Interrupts . | . . . . . Stealth | -11 -10 -10 -8 -6 --------- Run | Yrd Mat Sub Scr Fac Distress Signals . | . . . . . Communications Jammed . | . . . . . Distress Signals . | . . . . . Times Spotted 18 | . . 4 . 14 Peak Tracking Total 6 | . . 2 . 6 Tactical Retreats . | . . . . . Traps | -11 -10 -10 -8 -6 ------- Run | Yrd Mat Sub Scr Fac Traps Triggered 2 | . . . . 2 Indirectly . | . . . . . Trap Hack Attempts . | . . . . . Triggered . | . . . . . Disarmed . | . . . . . Reprogrammed . | . . . . . Reused . | . . . . . Traps Extracted . | . . . . . Installed . | . . . . . Triggered . | . . . . . Machines | -11 -10 -10 -8 -6 ---------- Run | Yrd Mat Sub Scr Fac Machines Disabled 8 | . . . . 8 Max in Single Turn 3 | . . . . 3 Machines Repaired . | . . . . . Machines Dismantled . | . . . . . Machines Sabotaged . | . . . . . Overloaded Fab Kills . | . . . . . Hacking | -11 -10 -10 -8 -6 --------- Run | Yrd Mat Sub Scr Fac Machines Accessed 1 | . . . 1 . Terminals . | . . . . . Fabricators . | . . . . . Repair Stations . | . . . . . Recycling Units . | . . . . . Scanalyzers . | . . . . . Garrison Access . | . . . . . Total Hacks 9 | . . . 9 . Successful 9 | . . . 9 . Failed . | . . . . . Catastrophic . | . . . . . Database Lockouts . | . . . . . Manual . | . . . . . Terminals . | . . . . . Fabricators . | . . . . . Repair Stations . | . . . . . Recycling Units . | . . . . . Scanalyzers . | . . . . . Garrison Access . | . . . . . Terminal Hacks 9 | . . . 9 . Record 9 | . . . 9 . Fabricator Hacks . | . . . . . Repair Station Hacks . | . . . . . Recycling Unit Hacks . | . . . . . Scanalyzer . | . . . . . Garrison Access Hacks . | . . . . . Unauthorized Hacks . | . . . . . Terminals . | . . . . . Fabricators . | . . . . . Repair Stations . | . . . . . Recycling Units . | . . . . . Scanalyzers . | . . . . . Garrison Access . | . . . . . Data Cores Recovered . | . . . . . Used . | . . . . . Hacking Detections . | . . . . . Full Trace Events . | . . . . . Feedback Events . | . . . . . Feedback Blocked . | . . . . . Robot Schematics Acquired . | . . . . . Robots Built . | . . . . . Authchips . | . . . . . Time . | . . . . . Total Robot Build Rating . | . . . . . Part Schematics Acquired . | . . . . . Parts Built . | . . . . . Authchips . | . . . . . Time . | . . . . . Total Part Build Rating . | . . . . . Parts Repaired . | . . . . . Time . | . . . . . Parts Recycled . | . . . . . Recycled Matter . | . . . . . Retrieved Matter . | . . . . . Retrieved Components . | . . . . . Parts Scanalyzed . | . . . . . Part Schematics Acquired . | . . . . . Parts Damaged . | . . . . . Bothacking | -11 -10 -10 -8 -6 ------------ Run | Yrd Mat Sub Scr Fac Used RIF Installer . | . . . . . Robots Hacked . | . . . . . Non-combat . | . . . . . Combat . | . . . . . Robot Hacks Applied . | . . . . . Relay Couplers Released . | . . . . . Fabnet Peak Effective % . | . . . . . Robots Rewired . | . . . . . Allies Hacked . | . . . . . Hacks Repelled . | . . . . . Allies | -11 -10 -10 -8 -6 -------- Run | Yrd Mat Sub Scr Fac Total Allies . | . . . . . Largest Group . | . . . . . Highest-Rated Group . | . . . . . Highest-Rated Ally . | . . . . . Total Orders . | . . . . . Ally Attacks . | . . . . . Total Damage . | . . . . . Kills . | . . . . . Allies Corrupted . | . . . . . Allies Melted . | . . . . . Intel | -11 -10 -10 -8 -6 ------- Run | Yrd Mat Sub Scr Fac Active Infowar (turns) 602 | . . . . 602 IFF 600 | . . . . 600 Terrain 489 | . . . . 489 ECM 1 | . . . . 1 Robot Analysis Total . | . . . . . Derelict Logs Recovered 1 | . . 1 . . Drone Launches . | . . . . . Drone Recoveries . | . . . . . Exploration | -11 -10 -10 -8 -6 ------------- Run | Yrd Mat Sub Scr Fac Turns Passed 3889 | 77 54 351 2300 1107 Spaces Moved 2187 | 47 27 208 1392 513 Core 8 | 7 . . . 1 Treads 2172 | 40 27 208 1392 505 Legs . | . . . . . Wheels 7 | . . . . 7 Hover . | . . . . . Flight . | . . . . . Fastest Speed 50 | 50 160 160 160 108 Average Speed 163 | 143 160 160 163 167 Slowest Speed 400 | 160 160 160 165 400 Overloaded Moves . | . . . . . Propulsion Burnouts . | . . . . . Robots Hopped . | . . . . . Potential Cave-ins . | . . . . . Cave-ins Triggered 1 | . . . . 1 Exploration Rate (%) 20 | 3 8 21 60 9 Regions Visited 4 Branch Regions 2 Pre-discovered Areas . | . . . . . Known Exits Taken . | . . . . . Unknown Exits Taken 4 | 1 1 1 1 . Scrap Searched 8 | . . . 8 . Spaces Dug . | . . . . . Terrain Destroyed 50 | . . . . 50 Melee . | . . . . . Projectile 4 | . . . . 4 AOE 46 | . . . . 46 Terrain Rammed . | . . . . . Walls Destroyed . | . . . . . Machines Disabled . | . . . . . Actions | -11 -10 -10 -8 -6 --------- Run | Yrd Mat Sub Scr Fac Total 2393 | 54 38 217 1424 660 Wait 72 | . 12 5 8 47 Move 2183 | 46 26 207 1391 513 Hop . | . . . . . Pick Up 25 | 2 . . 13 10 Fast Attach 13 | 6 . . 2 5 Attach 12 | . . . . 12 Detach 2 | . . . 2 . Swap 9 | . . . 2 7 Drop 16 | . . . 6 10 Fire 61 | . . 5 . 56 Melee . | . . . . . Ram . | . . . . . Kick . | . . . . . Crush . | . . . . . Escape Stasis . | . . . . . Rewire . | . . . . . Trap . | . . . . . Miscellaneous . | . . . . . Route ------- -11/Scrapyard -10/Materials -10/Subcaves -8/Scraptown -6/Factory History --------- Turn | Location | Event 2 | -11/Scrapyard | Met Revision 17 27 | -11/Scrapyard | Discovered new exit (range 14) 78 | -11/Scrapyard | Entered Materials 79 | -10/Materials | Met a group of wandering Federalists 117 | -10/Materials | Discovered new exit (range 9) 132 | -10/Materials | Entered Subcaves 133 | -10/Subcaves | Continued accompanying wandering Federalists (6) 134 | -10/Subcaves | Ambushed by Subdwellers from Twisted Machinery 172 | -10/Subcaves | Lost 4 allies 199 | -10/Subcaves | Learned Materials terminal intel 307 | -10/Subcaves | Build established: Mutant 374 | -10/Subcaves | Wandering Federalist uncovered a shortcut to Scraptown 481 | -10/Subcaves | A swath of the cavern ceiling suddenly collapsed 483 | -10/Subcaves | Entered Scraptown 738 | -8/Scraptown | Visited UFD Registry 765 | -8/Scraptown | Visited Fellowship of the Rings 816 | -8/Scraptown | Visited Artisan Demo Area 978 | -8/Scraptown | Visited IN-MT5's Study 1011 | -8/Scraptown | Heard Great Nut preacher, LISTEN AND RECITE! 1026 | -8/Scraptown | Visited Bundlers 1895 | -8/Scraptown | Visited SPCMW 2202 | -8/Scraptown | Discovered new exit (range 5) 2783 | -8/Scraptown | Entered Factory 2783 | -6/Factory | Evolved 8 slots: Propulsion x4, Utility x4 2925 | -6/Factory | Crushed by falling debris 3044 | -6/Factory | System corruption reached 10% 3873 | -6/Factory | Core integrity fell below 50% 3885 | -6/Factory | Core integrity fell below 20% 3890 | -6/Factory | Destroyed by G-50 Soldier with Heavy Laser Last Messages --------------- Com. Wheel destroyed. Destroyed Com. Wheel. Com. Wheel destroyed. Mni. Grenade Launcher destroyed. U-05 Engineer lays Concrete. U-05 Engineer builds a Wall. U-05 Engineer lays Concrete. U-05 Engineer builds a Wall. U-05 Engineer lays Concrete. IFF Parser destroyed. U-05 Engineer lays Concrete. P-60 Hacker resets G-50 Soldier, system corruption cleaned. U-05 Engineer lays Concrete. R-10 Processor collects Com. Wheel. U-05 Engineer lays Concrete. U-05 Engineer builds a Wall. U-05 Engineer lays Concrete. G-50 Soldier destroyed. OE,Q 7TC#,IRMOO RKI62ZC7IRLF:R3YW| Map ----- +----------------------------------------------------+ | ?????????????????????????????????????????????????? | | ?????????????????????????????????????????????????? | | ?????????????????????????????????????????????????? | | ?????????????????????????????????????????????????? | | ?????????????????????????????????????????????????? | | ?????????????????????????????????????????????????? | | ?????????????????????????????????????????????????? | | ?????????????????????????????????????????????????? | | ?????????????????????????????????????????????????? | | ?????????????????????????????????????????????????? | | ?????????????????????????????????????????????????? | | ?????????????????????????????????????????????????? | | ?????????????????????????????????????????????????? | | ?????????????????????????????????????????????????? | | ?????????????????????????????????????????????????? | | ??????????????????????###########????????????????? | | ??????????????????????# " * #????????????????? | | ??????????????????????# "! #????????????????? | | ???????????????????? # "* #????????????????? | | ???????????????????? # #?????????#??????? | | ???????????????????" # u #????????????????? | | ???????????????????" # #????????????????# | | ???????????????????" # #?????????#??#???? | | ?????????????????""" # #?????????##?????? | | ????????????????"""" # #?????????????#?#? | | ????????????????"""" @ !#????????????????? | | ??????????? l %#????????????????? | | ???????????"" """"" #??????#???????#?? | | ????????????????""" g #?????#???????#??? | | ???????????????"""" % #??#????#????????? | | ???????????????""""" g ] #??????????????#?? | | ???????????????""""" * ==g #????????#???????? | | ??????????????"""""" #### +###################### | | ??????????????"""""" % R | | ????????????? """" " =* | | ??????????""" """""" | | ????? | | ????? | | ????? * t | | ?????? | | ?????? #####+################################# | | ???????##????? ???????????????#??#?????????#?#?? | | ?????????????# "??????????????????????#??#???????? | | ?????????????# ?????????????????#???????????##?#?? | | ?????????????#?????????????????????????????????#?? | | ?????????????????????????????????????????????????? | | ?????????????????????????????????????????#??##?#?? | | ????????????????????????? ????????????????????#??? | | ?????????????????????????????????????????????#??## | | ?????????????????????????????????????????????????? | +----------------------------------------------------+ Best States ------------- Heat Dissipation 37 Energy Generation 18 Energy Capacity 310 Matter Stores 300 Matter Capacity 300 Sight Range 16 Terrain Scan Range 16 Terrain Scan Density 110 ECM Strength 2 Armor Coverage 150 Evasion (%) 40 Recoil Reduction 3 Item Schematics ----------------- None Robot Schematics ------------------ None Fabricated ------------ Nothing Repaired ---------- Nothing Alien Tech Used ----------------- None Achievements -------------- Oops Unlikely Earthworm Challenges ------------ None Game ------ Seed AccelerationSniperSlayer Manual? 0 Play Time 00:38:05 Cumulative 3.2 hours Start 2025.06.28 @ 17:59:12 End 2025.06.28 @ 18:58:19 Sessions 1 Manual Loads 0 Difficulty Rogue Special Mode None Game No. 4 Rogue 4 Adventurer 0 Explorer 0 Win Type - Total 0 Types 0/0/0/0/0/0/0/0/0/0 Lore% 4 Gallery% 6 Achievement% 12 Wizard Run 0 Options --------- Layout 2 ASCII 0 Keyboard 0 Movement Mouse Keybinds 0 Fullscreen 1 Font 24/Smallcaps Map View 50x44 Zoom Use 1% Tactical HUD 0 Map Filters NONE Filters NONE Steam 1 RUN: 385fb9d9-ff4a-4ab1-bc89-75de4a97e75e